Cogmind - Beta 13 @@@ ROGUE MODE // 2024.03.30 @ 19:00:30 Player: _An Result: Destroyed by ET-L70(R) with Subdweller Beam Cannon Performance ------------- Evolutions (0) 0 Regions Visited (2) 400 Robots Destroyed (31) 155 Value Destroyed (878) 878 Prototype IDs (0) 0 Alien Tech Used (0) 0 Bonus (0) 0 TOTAL SCORE: 1433 Bonus ------- None Cogmind --------- Core Integrity 0/250 Matter 285/300 Energy 80/100 System Corruption 0% Temperature Cool (17) Movement Hovering (56) Location -10/Subcaves Parts ------- > --- POWER (1) -------- (None) > --- PROPULSION (2) --- Hover Unit Hover Unit > --- UTILITY (2) ------ ECM Suite > --- WEAPON (2) ------- (None) > --- INVENTORY (5) ---- Subdweller Power Source Signal Interpreter Improved Terrain Scanner Subdweller Laser Datajack Peak State ------------ > --- POWER ------------ Ion Engine > --- PROPULSION ------- Improved Aluminum Leg Improved Aluminum Leg > --- UTILITY ---------- Small Storage Unit ECM Suite > --- WEAPON ----------- Autogun Autogun > --- INVENTORY -------- Improved Aluminum Leg Compact Wheel Hover Unit Seismic Detector Small Laser Small Laser Light EM Pulse Cannon Welding Torch [Rating: 12] Favorites ----------- Power Ion Engine Engine Ion Engine Propulsion Improved Aluminum Leg Leg Improved Aluminum Leg Hover Unit Hover Unit Utility Small Storage Unit Device ECM Suite Storage Small Storage Unit Weapon Autogun Energy Gun Subdweller Laser Energy Cannon Light EM Pulse Cannon Ballistic Gun Autogun Special Weapon Welding Torch Build | -11 -10 -10 ------- Run | Yrd Mat Sub Slots Evolved . | . . . Power . | . . . Propulsion . | . . . Utility . | . . . Weapon . | . . . Parts Attached 28 | 8 14 6 Power 3 | 1 1 1 Engine 3 | 1 1 1 Core . | . . . Reactor . | . . . Propulsion 9 | 2 4 3 Treads . | . . . Leg 7 | 2 4 1 Wheel . | . . . Hover 2 | . . 2 Flight . | . . . Utility 4 | 3 1 . Device 3 | 2 1 . Storage 1 | 1 . . Processor . | . . . Hackware . | . . . Protection . | . . . Artifact . | . . . Weapon 12 | 2 8 2 Energy Gun 4 | 1 2 1 Energy Cannon 4 | . 3 1 Ballistic Gun 3 | 1 2 . Ballistic Cannon . | . . . Launcher . | . . . Special Weapon 1 | . 1 . Impact Weapon . | . . . Slashing Weapon . | . . . Piercing Weapon . | . . . Special Melee Weapon . | . . . Unidentified Prototypes . | . . . Parts Lost 9 | . 5 4 Power 1 | . 1 . Propulsion 1 | . . 1 Utility 2 | . 1 1 Weapon 5 | . 3 2 Highest Loss Streak 3 | . 3 2 To Critical Strikes . | . . . Average Slot Usage (%) 96 | . 95 97 Engine 13 | . 13 13 Leg 27 | . 28 26 Device 12 | . 12 14 Storage 13 | . 14 13 Energy Gun 3 | . . 13 Energy Cannon 4 | . 3 7 Ballistic Gun 16 | . 20 5 Naked Turns . | . . . Heaviest Build 20 | 13 19 20 Greatest Support 26 | 20 26 26 Greatest Overweight (x) 1 | . . 1 Average Overweight (x) . | . . . Largest Inventory Capacity 8 | 8 8 8 Average Capacity 7 | 7 8 7 Most Carried 8 | 5 8 8 Average Carried 6 | 2 6 7 Final Capacity 8 | 8 8 5 Final Carried 7 | 4 7 5 Class Distribution -------------------- 100% | Mutant Dominant Class ---------------- Mutant | -10/Materials Mutant | -10/Subcaves Resources | -11 -10 -10 ----------- Run | Yrd Mat Sub Matter Collected 837 | 304 465 68 Remotely . | . . . Salvage Created 1130 | 146 763 221 Parts 69 | 10 51 8 Haulers Intercepted . | . . . Recyclers Shooed 1 | . 1 . Parts Field Recycled . | . . . Retrieved Matter . | . . . Parts Self-Destructed 6 | . . 6 Prevented . | . . . Kills | -11 -10 -10 ------- Run | Yrd Mat Sub Combat Hostiles Destroyed 22 | . 17 5 Melee 1 | . 1 . Guns 20 | . 16 4 Cannons 1 | . . 1 Classes Destroyed 7 | 2 3 2 Worker 1 | . 1 . Tunneler 5 | 3 2 . Recycler 1 | 1 . . Watcher 2 | . 2 . Grunt 20 | . 17 3 Sentry 1 | . . 1 Subdweller 1 | . . 1 Best Kill Streak 6 | 2 6 2 Combat Bots Only 4 | . 4 2 Max Kills in Single Turn 2 | 1 1 2 Gunslinging . | . . . Exploded . | . . . Melee 1 | . 1 . Uniques/NPCs Destroyed . | . . . Combat | -11 -10 -10 -------- Run | Yrd Mat Sub Hostile Shots Fired 152 | . 133 19 Missed 36 | . 34 2 Damage Taken 1538 | . 1199 339 Core 272 | . 200 72 Absorbed by Shields . | . . . Core Remaining (%) 100 | 100 . . Volleys Fired 93 | 10 75 8 Largest 2 | 2 2 2 Hottest 116 | 60 79 116 Shots Fired 163 | 20 127 16 Gun 139 | 20 108 11 Cannon 10 | . 5 5 Launcher . | . . . Special 14 | . 14 . Kinetic 116 | 10 103 3 Thermal 22 | . 14 8 Explosive . | . . . Electromagnetic 25 | 10 10 5 Robot Hit Streak 8 | 7 7 8 Robot Miss Streak 5 | 3 5 1 Penetration Max . | . . . Secondary Targets 1 | . 1 . Max Gunslinging Chain 1 | . 1 . Shots Hit Robots 96 | 14 71 11 Core Hits 43 | 4 33 6 Critical Kills . | . . . Critical Parts Destroyed . | . . . Critical Strikes . | . . . Melee Attacks . | . . . Impact . | . . . Slashing . | . . . Piercing . | . . . Sneak Attacks . | . . . Combat Hostiles . | . . . Follow-up Attacks . | . . . Damage Inflicted 1514 | 201 1091 222 Guns 1315 | 173 965 177 Cannons 116 | . 71 45 Explosions 28 | 28 . . Melee . | . . . Ramming 36 | . 36 . Kinetic 1044 | 87 926 31 Thermal 193 | 28 19 146 Explosive . | . . . Electromagnetic 241 | 86 110 45 Impact . | . . . Slashing . | . . . Piercing . | . . . Highest Corruption . | . . . Average Corruption . | . . . Corruption Purged . | . . . Corruption Blocked . | . . . Overload Shots . | . . . Overflow Damage 35 | 20 . 15 Projectiles 15 | . . 15 Explosions 20 | 20 . . Melee . | . . . Knockbacks . | . . . Impact . | . . . Kinetic . | . . . Secondary . | . . . Self-Inflicted Damage . | . . . Shots . | . . . Rammed . | . . . Targets Rammed 10 | . 10 . Kicked 10 | . 10 . Crushed . | . . . Highest Temperature 116 | . 116 18 Average Temperature 21 | . 23 7 Received Heat Transfer 801 | . 705 96 Siege Activations . | . . . Robots Corrupted . | . . . Combat Hostiles . | . . . Parts Fried . | . . . Impact Corruptions . | . . . Robots Melted . | . . . Combat Hostiles . | . . . Parts Melted . | . . . Heat Transferred 375 | 50 150 175 Parts Sabotaged . | . . . Parts Stolen . | . . . Parts Stripped . | . . . Power Chain Reactions 1 | 1 . . Alert | -11 -10 -10 ------- Run | Yrd Mat Sub Peak Influence 194 | 20 194 . Initial 13 | . 13 . Average 95 | 10 104 . Maximum Alert Level . | . . . Low Security (%) 100 | 100 100 . Level 1 . | . . . Level 2 . | . . . Level 3 . | . . . Level 4 . | . . . Level 5 . | . . . High Security . | . . . Max Security . | . . . Squads Dispatched 7 | . 7 . Investigation 4 | . 4 . Extermination . | . . . Reinforcement 3 | . 3 . Assault . | . . . Garrison . | . . . Intercept . | . . . Searches Triggered . | . . . Construction Impeded . | . . . Haulers Reinforced . | . . . Active Scanning Responses . | . . . Cargo Convoy Interrupts . | . . . Stealth | -11 -10 -10 --------- Run | Yrd Mat Sub Distress Signals 4 | . 4 . Communications Jammed . | . . . Distress Signals . | . . . Times Spotted 39 | . 30 9 Peak Tracking Total 5 | . 5 2 Tactical Retreats 5 | . 3 2 Traps | -11 -10 -10 ------- Run | Yrd Mat Sub Traps Triggered 2 | . 2 . Indirectly . | . . . Trap Hack Attempts . | . . . Triggered . | . . . Disarmed . | . . . Reprogrammed . | . . . Reused . | . . . Traps Extracted . | . . . Installed . | . . . Triggered . | . . . Machines | -11 -10 -10 ---------- Run | Yrd Mat Sub Machines Disabled . | . . . Max in Single Turn . | . . . Machines Repaired . | . . . Machines Dismantled . | . . . Machines Sabotaged . | . . . Overloaded Fab Kills . | . . . Hacking | -11 -10 -10 --------- Run | Yrd Mat Sub Machines Accessed 7 | . 7 . Terminals 6 | . 6 . Fabricators . | . . . Repair Stations . | . . . Recycling Units 1 | . 1 . Scanalyzers . | . . . Garrison Access . | . . . Total Hacks 28 | . 28 . Successful 12 | . 12 . Failed 16 | . 16 . Catastrophic 1 | . 1 . Database Lockouts . | . . . Manual 24 | . 24 . Terminals 23 | . 23 . Fabricators . | . . . Repair Stations . | . . . Recycling Units 5 | . 5 . Scanalyzers . | . . . Garrison Access . | . . . Terminal Hacks 4 | . 4 . Unreport Threat 1 | . 1 . Recall Investigation 1 | . 1 . Zone Layout 1 | . 1 . Patrol Navigation 1 | . 1 . Fabricator Hacks . | . . . Repair Station Hacks . | . . . Recycling Unit Hacks 2 | . 2 . Report Inventory 1 | . 1 . Retrieve Components 1 | . 1 . Scanalyzer . | . . . Garrison Access Hacks . | . . . Unauthorized Hacks 6 | . 6 . Terminals 5 | . 5 . Botnet 5 | . 5 . Fabricators . | . . . Repair Stations . | . . . Recycling Units 1 | . 1 . Monitor 1 | . 1 . Scanalyzers . | . . . Garrison Access . | . . . Data Cores Recovered . | . . . Used . | . . . Hacking Detections 6 | . 6 . Full Trace Events 2 | . 2 . Feedback Events . | . . . Feedback Blocked . | . . . Robot Schematics Acquired . | . . . Robots Built . | . . . Authchips . | . . . Time . | . . . Total Robot Build Rating . | . . . Part Schematics Acquired . | . . . Parts Built . | . . . Authchips . | . . . Time . | . . . Total Part Build Rating . | . . . Parts Repaired . | . . . Time . | . . . Parts Recycled . | . . . Recycled Matter . | . . . Retrieved Matter . | . . . Retrieved Components 5 | . 5 . Parts Scanalyzed . | . . . Part Schematics Acquired . | . . . Parts Damaged . | . . . Bothacking | -11 -10 -10 ------------ Run | Yrd Mat Sub Used RIF Installer . | . . . Robots Hacked . | . . . Non-combat . | . . . Combat . | . . . Robot Hacks Applied . | . . . Relay Couplers Released . | . . . Fabnet Peak Effective % . | . . . Robots Rewired . | . . . Allies Hacked . | . . . Hacks Repelled . | . . . Allies | -11 -10 -10 -------- Run | Yrd Mat Sub Total Allies . | . . . Largest Group . | . . . Highest-Rated Group . | . . . Highest-Rated Ally . | . . . Total Orders . | . . . Ally Attacks . | . . . Total Damage . | . . . Kills . | . . . Allies Corrupted . | . . . Allies Melted . | . . . Intel | -11 -10 -10 ------- Run | Yrd Mat Sub Robot Analysis Total . | . . . Derelict Logs Recovered 1 | . . 1 Drone Launches . | . . . Drone Recoveries . | . . . Exploration | -11 -10 -10 ------------- Run | Yrd Mat Sub Turns Passed 1970 | 139 1370 461 Spaces Moved 1062 | 71 675 316 Core 3 | 3 . . Treads . | . . . Legs 1055 | 68 675 312 Wheels . | . . . Hover 4 | . . 4 Flight . | . . . Fastest Speed 50 | 50 120 56 Average Speed 119 | 117 120 120 Slowest Speed 190 | 120 120 190 Overloaded Moves . | . . . Propulsion Burnouts . | . . . Robots Hopped . | . . . Cave-ins Triggered . | . . . Exploration Rate (%) 36 | 4 89 16 Regions Visited 2 Branch Regions 1 Pre-discovered Areas 2 | . . 2 Known Exits Taken . | . . . Unknown Exits Taken 2 | 1 1 . Scrap Searched 1 | . . 1 Spaces Dug . | . . . Terrain Destroyed 3 | 3 . . Melee . | . . . Projectile . | . . . AOE 3 | 3 . . Terrain Rammed . | . . . Walls Destroyed . | . . . Machines Disabled . | . . . Actions | -11 -10 -10 --------- Run | Yrd Mat Sub Total 1608 | 104 1121 383 Wait 382 | 10 324 48 Move 1060 | 70 674 316 Hop . | . . . Pick Up 14 | 5 9 . Fast Attach 12 | 6 5 1 Attach 11 | 2 5 4 Detach 10 | 1 5 4 Swap 5 | . 4 1 Drop 11 | . 10 1 Fire 93 | 10 75 8 Melee . | . . . Ram . | . . . Kick 10 | . 10 . Crush . | . . . Escape Stasis . | . . . Rewire . | . . . Trap . | . . . Miscellaneous . | . . . Route ------- -11/Scrapyard -10/Materials (discovered 6 exits: [*Mat x3] / [*Min x2] / [*Sub]) -10/Subcaves History --------- Turn | Location | Event 4 | -11/Scrapyard | Discovered new exit (range 15) 140 | -11/Scrapyard | Entered Materials 231 | -10/Materials | Lost 3 parts (1p1u1w) 311 | -10/Materials | Build established: Mutant 330 | -10/Materials | Discovered new exit (range 15) 510 | -10/Materials | Discovered new exit (range 7) 759 | -10/Materials | Core integrity fell below 50% 961 | -10/Materials | Discovered new exit (range 12) 1052 | -10/Materials | Discovered new exit (range 8) 1205 | -10/Materials | Discovered new exit (range 13) 1500 | -10/Materials | Discovered new exit (range 3) 1510 | -10/Materials | Entered Subcaves 1595 | -10/Subcaves | Learned location of Zion (-7) 1715 | -10/Subcaves | Core integrity fell below 20% 1932 | -10/Subcaves | Ambushed by Subdwellers from Twisted Machinery 1940 | -10/Subcaves | Met a Zionite searching for "candidates" 1971 | -10/Subcaves | Destroyed by ET-L70(R) with Subdweller Beam Cannon Last Messages --------------- LQ-AYH(R) destroyed. Acquired 10 matter. Subatomizers dissect the Disposable Heat Sink. Y-45 Defender destroyed. Beam Rifle fries itself beyond repair. Heat Sink fries itself beyond repair. Imp. Ion Engine fries itself beyond repair. Destroyed Sml. Laser. G-34 Mercenary destroyed. OJ-RQM(z): "She is not going to be happy we haven't found any suitable candidates yet." ET-L70(R) emerges from the Twisted Machinery. OJ-RQM(z): "Hey you! It's really dangerous down here, I feel that you could die at any moment. For your health and safety might I suggest a trip to Zion?" World map confirmed: -7/Zion. Lgt. EM Pulse Cannon destroyed. Dropped Imp. Aluminum Leg. Sml. Storage Unit destroyed. Map ----- +----------------------------------------------------+ | | | ???????????????????????????????????????????????? | | ???????????????????????????????????????????????? | | ???????????????????????????????????????????????? | | ???????????????????????????????????????????????? | | ???????????????????????????????????????????????? | | ???????????????????????????????????????????????? | | ???????????????????????????????????????????????? | | ???????????????????????????????????????????????? | | ???????????????????????????????????????????????? | | ???????????????????????????????????????????????? | | ???????????????????????????????????????????????? | | ???????????????????????????????????????????????? | | ???????????????????????????????????????????????? | | ???????????????????????????????????????????????? | | #???????????####???????????????????????????????? | | ##?########## ###?????????????????????????????? | | ### ## ####??????????????????????????? | | #??####????????????????????? | | #?## ##???????????????????? | | ## ###### ####????????????????? | | #####???# ##???????????????? | | ##??????## = #???????????????? | | # ## #????#### *| #???????????????? | | # ###### %# R ##= #???????????????? | | % ### !%* R @### #???????????????? | | #### = ### #??????????????? | | #?# # # # ## #??????????????? | | #### #### #### #??????????????? | | ### ##### #?## #??????????????? | | ?## #?## ##??## #??????????????? | | ?# #?# ### #####?????##??????????????? | | ?# ### ######?????????????????????????? | | ?# ### ###???????????????????????????? | | ?# ## ## ##?????????????????????? | | ## #?????????????????? | | # #????????????????? | | ## # # #????????????????? | | ## ## ###### ""#????????????????? | | ?# #?????### """ ?????????????????? | | # # #?????????"" ??????????????????? | | # ## #?????????? ??????????????????? | | ?# ### #???????????????????????????????? | | ?# #?# ##???????????????????????????????? | | # ?## #?# ##????????????????????????????????? | | ??# #?# ##?????????????????????????????????? | | ??## #?# ??????????????????????????????????? | | ????###?# #??????????????????????????????????? | | ???????? ???????????????????????????????????? | | ?????????? ???????????????????????????????????? | +----------------------------------------------------+ Best States ------------- Heat Dissipation 25 Energy Generation 15 Energy Capacity 250 Matter Stores 300 Matter Capacity 300 Sight Range 16 Terrain Scan Range 16 Terrain Scan Density 10 ECM Strength 1 Evasion (%) 55 Item Schematics ----------------- None Robot Schematics ------------------ None Fabricated ------------ Nothing Alien Tech Used ----------------- None Achievements -------------- GoHome() root@ Challenges ------------ None Game ------ Seed TimingAlertDevice Manual? 0 Play Time 00:17:55 Cumulative 1.0 hours Start 2024.03.30 @ 18:42:23 End 2024.03.30 @ 19:00:30 Sessions 1 Manual Loads 0 Difficulty Rogue Special Mode None Game No. 4 Rogue 4 Adventurer 0 Explorer 0 Win Type - Total 0 Types 0/0/0/0/0/0/0/0/0 Lore% 1 Gallery% 3 Achievement% 4 Wizard Run 0 Options --------- Layout 1 ASCII 0 Keyboard 1 Movement Numpad Keybinds 0 Fullscreen 1 Font 32/SmallcapsGlow Map View 50x35 Zoom Use 0% Tactical HUD 0 Map Filters NONE Filters NONE Steam 1 RUN: a469da5f-a51e-401d-adb6-c87053cf847f